fUST/lending_fUST_20250619
["ID","MTS","AMOUNT","RATE_DAILY","PERIOD"]
[366544332,1750313434261,-400.0,0.00021917,6]
[366544333,1750313434270,-494.27,0.00021917,6]
[366544334,1750313434280,-283.84366478,0.00021958,2]
[366544335,1750313434289,-500.0,0.00021973,2]
[366544336,1750313434298,-500.84850324,0.00021973,2]
[366544337,1750313434308,-500.0,0.00021973,2]
[366544338,1750313434317,-235.88530578,0.00021973,2]
[366544339,1750313434327,-500.0,0.00021973,2]
[366544340,1750313434336,-504.09252298,0.00021973,2]
[366544341,1750313434345,-501.34730802,0.00021973,2]
[366544342,1750313434355,-266.15255409,0.00021973,2]
[366544343,1750313434364,-500.0,0.00021973,2]
[366544344,1750313434373,-501.05937485,0.00021973,2]
[366544345,1750313434383,-406.97126698,0.00021973,2]
[366544346,1750313434392,-504.03301066,0.00022044,2]
[366544347,1750313434401,-182877.4174479,0.00022116,2]
[366544348,1750313434415,-50335.19303821,0.00022116,2]
[366544349,1750313434427,-10344.06688014,0.00022116,2]
[366544350,1750313434438,-1061.95574086,0.00022116,2]
[366544351,1750313434450,-4891.40534829,0.00022116,2]
[366544357,1750313438303,-476.46081799,0.00020761,2]
[366544364,1750313438415,-319.73816818,0.00020761,2]
[366544366,1750313438425,-616.72,0.00021917,6]
[366544368,1750313438435,-546131.4594946,0.00022116,2]
[366544370,1750313438445,-505.81065277,0.00022121,2]
[366544373,1750313438455,-541.86,0.0002213,3]
[366544375,1750313438465,-361.23,0.00022177,3]
[366544377,1750313438475,-180.61,0.00022177,3]
[366544379,1750313438485,-658.31,0.00022181,3]
[366544381,1750313438494,-500.0,0.00022187,2]
[366544383,1750313438504,-160.0,0.0002219,2]
[366544385,1750313438513,-500.0,0.00022191,2]
[366544387,1750313438523,-460.0,0.00022191,6]
[366544389,1750313438533,-1374.37,0.00022191,6]
[366544391,1750313438543,-460.0,0.00022191,6]
[366544393,1750313438552,-460.0,0.00022191,6]
[366544395,1750313438563,-460.0,0.00022191,6]
[366544397,1750313438573,-396.32208152,0.00022191,6]
[366544399,1750313438583,-529.49,0.00022191,6]
[366544401,1750313438592,-480.24,0.00022191,6]
[366544403,1750313438602,-460.0,0.00022191,6]
[366544405,1750313438612,-380.0,0.00022191,6]
[366544407,1750313438622,-1544.68,0.00022191,6]
[366544409,1750313438631,-460.0,0.00022191,6]
[366544411,1750313438641,-460.0,0.00022191,6]
[366544413,1750313438650,-460.0,0.00022191,6]
[366544415,1750313438665,-663.55,0.00022191,6]
[366544417,1750313438675,-520.65944708,0.00022191,6]
[366544419,1750313438685,-739.05,0.00022191,6]
[366544421,1750313438695,-460.0,0.00022191,6]
[366544423,1750313438705,-460.0,0.00022191,6]
[366544426,1750313438715,-460.0,0.00022191,6]
[366544427,1750313438726,-1503.65,0.00022191,6]
[366544428,1750313438736,-2490.71,0.00022191,6]
[366544429,1750313438747,-460.0,0.00022191,6]
[366544431,1750313438758,-475.75,0.00022191,6]
[366544434,1750313438770,-3762.46,0.00022191,6]
[366544435,1750313438780,-460.0,0.00022191,6]
[366544436,1750313438789,-460.0,0.00022191,6]
[366544437,1750313438799,-2184.6,0.00022191,6]
[366544438,1750313438810,-460.0,0.00022191,6]
[366544439,1750313438823,-3392.22,0.00022191,6]
[366544440,1750313438833,-479.75,0.00022191,6]
[366544441,1750313438843,-2831.53,0.00022191,6]
[366544442,1750313438852,-460.0,0.00022191,6]
[366544443,1750313438862,-460.0,0.00022191,6]
[366544444,1750313438872,-717.74,0.00022191,6]
[366544445,1750313438881,-1341.22,0.00022191,6]
[366544446,1750313438890,-481.27,0.00022191,6]
[366544447,1750313438900,-2948.33,0.00022191,6]
[366544448,1750313438909,-1088.05,0.00022191,6]
[366544449,1750313438919,-460.0,0.00022191,6]
[366544450,1750313438928,-460.0,0.00022191,6]
[366544451,1750313438937,-984.88,0.00022191,6]
[366544452,1750313438946,-460.0,0.00022191,6]
[366544453,1750313438956,-460.0,0.00022191,6]
[366544454,1750313438965,-654.11,0.00022191,6]
[366544455,1750313438975,-460.0,0.00022191,6]
[366544456,1750313438984,-493.65,0.00022191,6]
[366544457,1750313438993,-460.0,0.00022191,6]
[366544458,1750313439003,-460.0,0.00022191,6]
[366544459,1750313439013,-1342.88,0.00022191,6]
[366544460,1750313439022,-460.0,0.00022191,6]
[366544461,1750313439032,-781.16,0.00022191,6]
[366544462,1750313439041,-460.0,0.00022191,6]
[366544463,1750313439051,-460.0,0.00022191,6]
[366544464,1750313439061,-848.35,0.00022191,6]
[366544465,1750313439070,-460.0,0.00022191,6]
[366544466,1750313439080,-460.0,0.00022191,6]
[366544467,1750313439089,-653.72,0.00022191,6]
[366544468,1750313439099,-460.0,0.00022191,6]
[366544469,1750313439108,-460.0,0.00022191,6]
[366544470,1750313439117,-470.8,0.00022191,6]
[366544471,1750313439126,-460.0,0.00022191,6]
[366544472,1750313439136,-460.0,0.00022191,6]
[366544473,1750313439145,-460.0,0.00022191,6]
[366544474,1750313439155,-460.0,0.00022191,6]
[366544475,1750313439164,-300.0,0.00022191,2]
[366544476,1750313439173,-460.0,0.00022191,6]
[366544477,1750313439183,-2007.73,0.00022191,6]
[366544478,1750313439192,-1300.41,0.00022191,6]
[366544479,1750313439201,-467.01,0.00022191,6]
[366544480,1750313439210,-1268.89,0.00022191,6]
[366544481,1750313439219,-2036.66,0.00022191,6]
[366544482,1750313439229,-460.0,0.00022191,6]
[366544483,1750313439238,-2517.15,0.00022191,6]
[366544484,1750313439247,-460.0,0.00022191,6]
[366544485,1750313439257,-460.0,0.00022191,6]
[366544486,1750313439266,-460.0,0.00022191,6]
[366544487,1750313439275,-614.25,0.00022191,6]
[366544488,1750313439284,-462.59,0.00022191,6]
[366544489,1750313439293,-656.74,0.00022191,6]
[366544490,1750313439303,-445.39,0.00022191,6]
[366544491,1750313439312,-494.27,0.00022191,6]
[366544492,1750313439322,-616.72,0.00022191,6]
[366544493,1750313439331,-280.89146389,0.00022206,2]
[366544494,1750313439340,-160.78070245,0.00022233,2]
[366544495,1750313439349,-1703.55011971,0.00022233,2]
[366544496,1750313439359,-207.4,0.00022233,2]
[366544497,1750313439368,-151.0,0.00022233,2]
[366544498,1750313439377,-500.0,0.00022233,2]
[366544499,1750313439387,-500.0,0.00022233,2]
[366544500,1750313439396,-500.0,0.00022233,2]
[366544501,1750313439405,-5000.0,0.00022233,2]
[366544502,1750313439414,-500.0,0.00022233,2]
[366544503,1750313439423,-500.0,0.00022233,2]
[366544504,1750313439432,-500.0,0.00022233,2]
[366544505,1750313439441,-1379.95989952,0.00022233,2]
[366544506,1750313439450,-500.0,0.00022233,2]
[366544507,1750313439459,-500.0,0.00022233,2]
[366544508,1750313439469,-500.0,0.00022233,2]
[366544509,1750313439478,-500.0,0.00022233,2]
[366544510,1750313439487,-500.0,0.00022233,2]
[366544511,1750313439496,-500.0,0.00022233,2]
[366544512,1750313439505,-500.0,0.00022233,2]
[366544513,1750313439515,-500.0,0.00022233,2]
[366544514,1750313439524,-500.0,0.00022233,2]
[366544515,1750313439533,-500.0,0.00022233,2]
[366544516,1750313439542,-500.0,0.00022233,2]
[366544517,1750313439551,-500.0,0.00022233,2]
[366544518,1750313439561,-500.0,0.00022233,2]
[366544519,1750313439570,-500.0,0.00022233,2]
[366544520,1750313439580,-500.0,0.00022233,2]
[366544521,1750313439590,-500.0,0.00022233,2]
[366544522,1750313439599,-500.0,0.00022233,2]
[366544523,1750313439610,-500.0,0.00022233,2]
[366544524,1750313439619,-500.0,0.00022233,2]
[366544525,1750313439629,-500.0,0.00022233,2]
[366544526,1750313439638,-500.0,0.00022233,2]
[366544527,1750313439648,-500.0,0.00022233,2]
[366544528,1750313439658,-500.0,0.00022233,2]
[366544529,1750313439670,-500.0,0.00022233,2]
[366544530,1750313439679,-609.92528467,0.00022233,2]
[366544531,1750313439689,-420.0,0.00022242,2]
[366544532,1750313439699,-420.0,0.00022244,2]
[366544533,1750313439709,-228.54354034,0.0002234,4]
[366544534,1750313439718,-821.61096832,0.00022365,2]
[366544535,1750313439728,-4798.25843611,0.00022365,2]
[366544536,1750313439739,-902.19,0.00022398,2]
[366544537,1750313439748,-1374.37,0.00022465,6]
[366544538,1750313439758,-460.0,0.00022465,6]
[366544539,1750313439767,-341.56654318,0.00022465,6]
[366544540,1750313439776,-529.49,0.00022465,6]
[366544541,1750313439786,-480.24,0.00022465,6]
[366544542,1750313439796,-460.0,0.00022465,6]
[366544543,1750313439805,-1544.68,0.00022465,6]
[366544544,1750313439815,-156.42228897,0.00022465,6]
[366544545,1750313439824,-460.0,0.00022465,6]
[366544546,1750313439833,-460.0,0.00022465,6]
[366544547,1750313439842,-663.55,0.00022465,6]
[366544548,1750313439851,-739.05,0.00022465,6]
[366544549,1750313439860,-460.0,0.00022465,6]
[366544550,1750313439870,-460.0,0.00022465,6]
[366544551,1750313439879,-460.0,0.00022465,6]
[366544552,1750313439888,-1503.65,0.00022465,6]
[366544553,1750313439898,-2490.71,0.00022465,6]
[366544554,1750313439907,-475.75,0.00022465,6]
[366544555,1750313439916,-3762.46,0.00022465,6]
[366544556,1750313439925,-460.0,0.00022465,6]
[366544557,1750313439934,-509.126198,0.00022465,6]
[366544558,1750313439945,-2184.6,0.00022465,6]
[366544559,1750313439957,-460.0,0.00022465,6]
[366544560,1750313439966,-3392.22,0.00022465,6]
[366544561,1750313439977,-479.75,0.00022465,6]
[366544562,1750313439986,-2831.53,0.00022465,6]
[366544563,1750313439995,-460.0,0.00022465,6]
[366544564,1750313440004,-460.0,0.00022465,6]
[366544565,1750313440014,-1341.22,0.00022465,6]
[366544566,1750313440023,-481.27,0.00022465,6]
[366544567,1750313440032,-2948.33,0.00022465,6]
[366544570,1750313440042,-1088.05,0.00022465,6]
[366544571,1750313440051,-184.76156487,0.00022465,6]
[366544572,1750313440060,-460.0,0.00022465,6]
[366544573,1750313440070,-984.88,0.00022465,6]
[366544574,1750313440079,-460.0,0.00022465,6]
[366544575,1750313440089,-460.0,0.00022465,6]
[366544576,1750313440098,-654.11,0.00022465,6]
[366544577,1750313440107,-406.12385625,0.00022465,6]
[366544578,1750313440116,-493.65,0.00022465,6]
[366544579,1750313440126,-460.0,0.00022465,6]
[366544580,1750313440135,-1342.88,0.00022465,6]
[366544581,1750313440144,-460.0,0.00022465,6]
[366544582,1750313440153,-781.16,0.00022465,6]
[366544583,1750313440162,-460.0,0.00022465,6]
[366544584,1750313440172,-460.0,0.00022465,6]
[366544585,1750313440181,-848.35,0.00022465,6]
[366544586,1750313440190,-460.0,0.00022465,6]
[366544587,1750313440199,-460.0,0.00022465,6]
[366544588,1750313440209,-653.72,0.00022465,6]
[366544589,1750313440218,-460.0,0.00022465,6]
[366544590,1750313440227,-460.0,0.00022465,6]
[366544591,1750313440236,-470.8,0.00022465,6]
[366544592,1750313440246,-460.0,0.00022465,6]
[366544593,1750313440255,-460.0,0.00022465,6]
[366544594,1750313440264,-460.0,0.00022465,6]
[366544595,1750313440274,-300.0,0.00022465,2]
[366544596,1750313440283,-325.00146527,0.00022465,6]
[366544597,1750313440292,-2007.73,0.00022465,6]
[366544598,1750313440301,-1300.41,0.00022465,6]
[366544599,1750313440311,-467.01,0.00022465,6]
[366544600,1750313440321,-1268.89,0.00022465,6]
[366544601,1750313440329,-2036.66,0.00022465,6]
[366544602,1750313440338,-460.0,0.00022465,6]
[366544603,1750313440348,-2517.15,0.00022465,6]
[366544604,1750313440357,-460.0,0.00022465,6]
[366544605,1750313440366,-460.0,0.00022465,6]
[366544606,1750313440375,-460.0,0.00022465,6]
[366544607,1750313440384,-614.25,0.00022465,6]
[366544608,1750313440392,-462.59,0.00022465,6]
[366544609,1750313440402,-656.74,0.00022465,6]
[366544610,1750313440411,-494.27,0.00022465,6]
[366544611,1750313440421,-616.72,0.00022465,6]
[366544612,1750313440430,-511.62475922,0.00022521,2]
[366544613,1750313440439,-520.66386533,0.00022521,2]
[366544614,1750313440448,-1002.75230945,0.00022521,2]
[366544615,1750313440459,-250.0,0.0002255,2]
[366544616,1750313440470,-179.6707803,0.00022712,2]
[366544618,1750313440479,-208.3857422,0.00022712,2]
[366544620,1750313440490,-618.9127385,0.00022712,2]
[366544622,1750313440499,-821.6109683,0.00022728,2]
[366544624,1750313440508,-1000.0,0.00022735,2]
[366544626,1750313440517,-1018.96624797,0.00022739,2]
[366544628,1750313440526,-151.0,0.00022739,7]
[366544630,1750313440535,-151.0,0.00022739,7]
[366544632,1750313440545,-158.861752,0.00022739,7]
[366544633,1750313440554,-151.0,0.00022739,7]
[366544636,1750313440565,-151.0,0.00022739,7]
[366544639,1750313440574,-283.507897,0.00022739,7]
[366544642,1750313440583,-283.507897,0.00022739,7]
[366544646,1750313440594,-1374.37,0.00022739,6]
[366544647,1750313440603,-460.0,0.00022739,6]
[366544649,1750313440611,-529.49,0.00022739,6]
[366544651,1750313440620,-480.24,0.00022739,6]
[366544653,1750313440629,-1544.68,0.00022739,6]
[366544655,1750313440638,-156.31737783,0.00022739,6]
[366544657,1750313440647,-460.0,0.00022739,6]
[366544659,1750313440657,-663.55,0.00022739,6]
[366544661,1750313440669,-739.05,0.00022739,6]
[366544663,1750313440678,-460.0,0.00022739,6]
[366544665,1750313440687,-460.0,0.00022739,6]
[366544667,1750313440696,-460.0,0.00022739,6]
[366544669,1750313440705,-1503.65,0.00022739,6]
[366544671,1750313440715,-2490.71,0.00022739,6]
[366544673,1750313440725,-475.75,0.00022739,6]
[366544675,1750313440734,-3762.46,0.00022739,6]
[366544677,1750313440744,-460.0,0.00022739,6]
[366544679,1750313440753,-2184.6,0.00022739,6]
[366544681,1750313440762,-460.0,0.00022739,6]
[366544683,1750313440771,-3392.22,0.00022739,6]
[366544685,1750313440780,-479.75,0.00022739,6]
[366544687,1750313440789,-2831.53,0.00022739,6]
[366544689,1750313440798,-460.0,0.00022739,6]
[366544691,1750313440809,-460.0,0.00022739,6]
[366544693,1750313440818,-481.27,0.00022739,6]
[366544695,1750313440827,-1341.22,0.00022739,6]
[366544697,1750313440836,-2948.33,0.00022739,6]
[366544699,1750313440845,-286.93940116,0.00022739,6]
[366544705,1750313440899,-317.46396676,0.00021917,6]
[366544707,1750313440909,-142.53603324,0.00021917,6]
[366544709,1750313440919,-801.11059884,0.00022739,6]
[366544711,1750313440928,-460.0,0.00022739,6]
[366544713,1750313440937,-631.86329446,0.00022739,6]
[366544715,1750313440947,-353.01670554,0.00022739,6]
[366544717,1750313440956,-460.0,0.00022739,6]
[366544719,1750313440966,-460.0,0.00022739,6]
[366544721,1750313440975,-132.30865697,0.00022739,6]
[366544805,1750313446476,-500.0,0.00020436,2]
[366544806,1750313446486,-500.0,0.00020436,2]
[366544807,1750313446495,-260.58948386,0.00020436,2]
[366544808,1750313510119,2108.493,0.000245,120]
[366544810,1750313931959,258.3,0.00022,30]
[366544811,1750313951019,250.0,0.00022,30]
[366544812,1750313996848,1176.01,0.000246,120]
[366544823,1750314109714,50000.0,0.00024489,120]
[366544824,1750314281029,50000.0,0.00024498,120]
[366544972,1750314638562,-666.0,0.00019249,2]
[366544973,1750314638572,-186.43358,0.0001928,2]
[366544975,1750314638581,-250.23,0.00019718,2]
[366544977,1750314638591,-261.69012923,0.0002015,2]
[366544978,1750314638600,-300.0,0.00020246,2]
[366544979,1750314638609,-300.0,0.00020246,2]
[366544982,1750314638619,-300.0,0.00020246,2]
[366544984,1750314638628,-1200.0,0.00020246,2]
[366544985,1750314638638,-505.82440206,0.00020247,2]
[366544986,1750314638647,-500.0,0.00020247,2]
[366544987,1750314638656,-500.0,0.00020247,2]
[366544988,1750314638666,-500.0,0.00020247,2]
[366544989,1750314638675,-500.0,0.00020247,2]
[366544990,1750314638684,-500.0,0.00020247,2]
[366544991,1750314638695,-597.96228798,0.00020247,2]
[366544992,1750314638704,-500.0,0.00020247,2]
[366544993,1750314638714,-434.03548901,0.00020247,2]
[366544994,1750314638723,-438.63002645,0.00020247,2]
[366544995,1750314638740,-500.0,0.00020247,2]
[366544996,1750314638751,-500.0,0.00020247,2]
[366544997,1750314638762,-500.0,0.00020247,2]
[366544998,1750314638773,-500.0,0.00020247,2]
[366544999,1750314638784,-500.0,0.00020247,2]
[366545000,1750314638794,-500.0,0.00020247,2]
[366545001,1750314638803,-408.10834769,0.00020247,2]
[366545002,1750314638833,-91.89165231,0.00020247,2]
[366545003,1750314638843,-500.0,0.00020247,2]
[366545004,1750314638853,-500.0,0.00020247,2]
[366545005,1750314638862,-500.0,0.00020247,2]
[366545006,1750314638871,-500.0,0.00020247,2]
[366545007,1750314638881,-628.61545513,0.00020247,2]
[366545008,1750314638890,-500.0,0.00020247,2]
[366545009,1750314638900,-500.0,0.00020247,2]
[366545010,1750314638909,-510.20785101,0.00020247,2]
[366545011,1750314638918,-500.0,0.00020247,2]
[366545012,1750314638928,-500.0,0.00020247,2]
[366545013,1750314638938,-467.48366526,0.00020247,2]
[366545014,1750314638947,-500.0,0.00020247,2]
[366545015,1750314638960,-219.94429793,0.00020247,2]
[366545016,1750314638979,-500.0,0.00020247,2]
[366545017,1750314638988,-500.0,0.00020247,2]
[366545018,1750314638997,-500.0,0.00020247,2]
[366545019,1750314639007,-500.0,0.00020247,2]
[366545020,1750314639016,-222.26279254,0.00020247,2]
[366545021,1750314639025,-500.0,0.00020247,2]
[366545022,1750314639035,-500.0,0.00020247,2]
[366545023,1750314639045,-500.0,0.00020247,2]
[366545024,1750314639055,-500.0,0.00020247,2]
[366545025,1750314639064,-500.0,0.00020247,2]
[366545026,1750314639074,-500.0,0.00020247,2]
[366545027,1750314639083,-239.47541563,0.00020247,2]
[366545028,1750314639093,-500.0,0.00020247,2]
[366545029,1750314639103,-625.69349061,0.00020247,2]
[366545030,1750314639112,-303.99878889,0.00020247,2]
[366545031,1750314639122,-500.0,0.00020247,2]
[366545032,1750314639133,-500.0,0.00020247,2]
[366545033,1750314639143,-500.0,0.00020247,2]
[366545034,1750314639153,-500.0,0.00020247,2]
[366545035,1750314639162,-500.0,0.00020247,2]
[366545036,1750314639172,-500.0,0.00020247,2]
[366545037,1750314639182,-500.0,0.00020247,2]
[366545038,1750314639192,-300.0,0.00020248,2]
[366545039,1750314639202,-176.69028456,0.0002025,2]
[366545040,1750314639211,-500.0,0.0002025,2]
[366545041,1750314639221,-500.0,0.0002025,2]
[366545042,1750314639231,-500.0,0.0002025,2]
[366545043,1750314639240,-500.0,0.0002025,2]
[366545044,1750314639249,-500.0,0.0002025,2]
[366545045,1750314639260,-500.0,0.0002025,2]
[366545046,1750314639270,-500.0,0.0002025,2]
[366545047,1750314639282,-500.0,0.0002025,2]
[366545048,1750314639292,-616.58888494,0.0002025,2]
[366545049,1750314639303,-500.0,0.0002025,2]
[366545050,1750314639313,-500.0,0.0002025,2]
[366545051,1750314639322,-650.0,0.0002025,2]
[366545052,1750314639332,-24900.0,0.00020251,2]
[366545053,1750314639342,-500.0,0.00020367,2]
[366545054,1750314639352,-288.29581394,0.00020465,2]
[366545055,1750314639362,-192.433,0.00020644,2]
[366545056,1750314639372,-500.46,0.00020657,2]
[366545057,1750314639382,-219.4643496,0.00020843,2]
[366545058,1750314639392,-261.69012918,0.00020854,2]
[366545059,1750314639402,-518.96624797,0.00020915,2]
[366545060,1750314639411,-500.0,0.00021164,2]
[366545061,1750314639421,-261.69012918,0.00021558,2]
[366545062,1750314639430,-750.69,0.00021596,2]
[366545063,1750314639440,-160.0,0.00021659,2]
[366545064,1750314639449,-160.0,0.00021659,2]
[366545065,1750314639459,-160.0,0.00021659,2]
[366545066,1750314639468,-160.0,0.00021659,2]
[366545067,1750314639478,-160.0,0.00021659,2]
[366545068,1750314639488,-160.0,0.00021659,2]
[366545069,1750314639498,-160.0,0.00021659,2]
[366545070,1750314639507,-160.0,0.00021659,2]
[366545071,1750314639517,-12544.68530873,0.00021659,2]
[366545072,1750314639526,-230.0259007,0.00021659,2]
[366545073,1750314639536,-424.78309573,0.00021659,2]
[366545074,1750314639545,-160.0,0.00021659,2]
[366545075,1750314639555,-845.93775772,0.00021659,2]
[366545076,1750314639565,-213.47708638,0.00021659,2]
[366545077,1750314639575,-1275.1628404,0.000218,2]
[366545078,1750314639585,-203.39711446,0.0002181,4]
[366545079,1750314639595,-317.7667429,0.0002189,2]
[366545080,1750314639604,-821.31,0.00021895,10]
[366545081,1750314639614,-684.43,0.00021895,10]
[366545082,1750314639623,-570.35,0.00021895,10]
[366545083,1750314639633,-475.3,0.00021895,10]
[366545084,1750314639643,-25614.5433292,0.00021905,2]
[366545085,1750314639652,-694.29,0.00021907,3]
[366545086,1750314639661,-415.01,0.00021907,3]
[366545087,1750314639671,-207.5,0.00021907,3]
[366545088,1750314639680,-622.55,0.00021907,3]
[366545089,1750314639689,-500.0,0.00021916,2]
[366545090,1750314639699,-295.4380979,0.00021916,2]
[366545091,1750314639708,-460.0,0.00021917,6]
[366545092,1750314639719,-460.0,0.00021917,6]
[366545093,1750314639728,-460.0,0.00021917,6]
[366545094,1750314639738,-460.0,0.00021917,6]
[366545095,1750314639748,-460.0,0.00021917,6]
[366545096,1750314639757,-253.11793331,0.00021917,6]
[366545097,1750314639767,-1476.84,0.00021917,6]
[366545098,1750314639777,-460.0,0.00021917,6]
[366545099,1750314639786,-594.03,0.00021917,6]
[366545100,1750314639795,-329.75239953,0.00021917,6]
[366545101,1750314639805,-460.0,0.00021917,6]
[366545102,1750314639815,-460.0,0.00021917,6]
[366545103,1750314639824,-239.74588453,0.00021917,6]
[366545104,1750314639834,-460.0,0.00021917,6]
[366545105,1750314639844,-460.0,0.00021917,6]
[366545106,1750314639853,-460.0,0.00021917,6]
[366545107,1750314639864,-460.0,0.00021917,6]
[366545108,1750314639873,-460.0,0.00021917,6]
[366545109,1750314639883,-460.0,0.00021917,6]
[366545110,1750314639892,-460.0,0.00021917,6]
[366545111,1750314639902,-486.27830515,0.00021917,6]
[366545112,1750314639911,-460.0,0.00021917,6]
[366545113,1750314639920,-460.0,0.00021917,6]
[366545114,1750314639930,-297.50690932,0.00021917,6]
[366545115,1750314639939,-460.0,0.00021917,6]
[366545116,1750314639949,-460.0,0.00021917,6]
[366545117,1750314639959,-508.26281606,0.00021917,6]
[366545118,1750314639968,-558.02,0.00021917,6]
[366545119,1750314639977,-487.83,0.00021917,6]
[366545120,1750314639987,-460.0,0.00021917,6]
[366545121,1750314639996,-253.15519457,0.00021917,6]
[366545122,1750314640006,-460.0,0.00021917,6]
[366545123,1750314640015,-460.0,0.00021917,6]
[366545124,1750314640024,-1624.74,0.00021917,6]
[366545125,1750314640034,-595.60869425,0.00021917,6]
[366545126,1750314640044,-460.0,0.00021917,6]
[366545127,1750314640053,-460.0,0.00021917,6]
[366545128,1750314640063,-460.0,0.00021917,6]
[366545129,1750314640072,-365.98364838,0.00021917,6]
[366545130,1750314640082,-599.04633505,0.00021917,6]
[366545131,1750314640091,-305.79817633,0.00021917,6]
[366545132,1750314640100,-460.0,0.00021917,6]
[366545133,1750314640110,-460.0,0.00021917,6]
[366545134,1750314640120,-420.0,0.00021917,6]
[366545135,1750314640129,-460.0,0.00021917,6]
[366545136,1750314640138,-225.01454495,0.00021917,6]
[366545137,1750314640147,-460.0,0.00021917,6]
[366545138,1750314640157,-460.0,0.00021917,6]
[366545142,1750314640317,-460.0,0.00021917,6]
[366545143,1750314640327,-452.35355219,0.00021917,6]
[366545145,1750314640337,-577.72,0.00021917,6]
[366545147,1750314640346,-460.0,0.00021917,6]
[366545149,1750314640356,-460.0,0.00021917,6]
[366545150,1750314640366,-460.0,0.00021917,6]
[366545151,1750314640376,-430.0,0.00021917,6]
[366545152,1750314640385,-460.0,0.00021917,6]
[366545153,1750314640394,-460.0,0.00021917,6]
[366545154,1750314640404,-460.0,0.00021917,6]
[366545155,1750314640413,-460.0,0.00021917,6]
[366545157,1750314640422,-460.0,0.00021917,6]
[366545159,1750314640432,-331.3782252,0.00021917,6]
[366545160,1750314640441,-460.0,0.00021917,6]
[366545161,1750314640450,-430.0,0.00021917,6]
[366545162,1750314640459,-460.0,0.00021917,6]
[366545163,1750314640469,-460.0,0.00021917,6]
[366545164,1750314640478,-443.885315,0.00021917,6]
[366545165,1750314640487,-460.0,0.00021917,6]
[366545166,1750314640496,-460.0,0.00021917,6]
[366545168,1750314640506,-307.84103979,0.00021917,6]
[366545170,1750314640516,-460.0,0.00021917,6]
[366545171,1750314640525,-537.5,0.00021917,6]
[366545172,1750314640535,-1524.28,0.00021917,6]
[366545173,1750314640544,-477.46,0.00021917,6]
[366545174,1750314640554,-460.0,0.00021917,6]
[366545175,1750314640564,-460.0,0.00021917,6]
[366545176,1750314640574,-385.52197514,0.00021917,6]
[366545177,1750314640584,-460.0,0.00021917,6]
[366545178,1750314640594,-460.0,0.00021917,6]
[366545180,1750314640603,-460.0,0.00021917,6]
[366545182,1750314640613,-583.04,0.00021917,6]
[366545184,1750314640622,-423.48202224,0.00021917,6]
[366545185,1750314640632,-460.0,0.00021917,6]
[366545186,1750314640641,-460.0,0.00021917,6]
[366545187,1750314640651,-460.0,0.00021917,6]
[366545188,1750314640661,-460.0,0.00021917,6]
[366545189,1750314640670,-3639.1,0.00021917,6]
[366545190,1750314640680,-386.12163706,0.00021917,6]
[366545191,1750314640689,-460.0,0.00021917,6]
[366545192,1750314640699,-460.0,0.00021917,6]
[366545193,1750314640709,-389.25462796,0.00021917,6]
[366545194,1750314640719,-2440.84,0.00021917,6]